lending/lending_fUSD_20251124
["ID","MTS","AMOUNT","RATE_DAILY","PERIOD"]
[394784376,1763944250389,-583.33474748,0.00039888,8]
[394784377,1763944250398,-500.0,0.00039888,8]
[394784378,1763944250408,-500.0,0.00039888,8]
[394784379,1763944250418,-500.0,0.00039888,8]
[394784380,1763944250428,-500.0,0.00039888,8]
[394784381,1763944250439,-500.0,0.00039888,8]
[394784382,1763944250448,-500.0,0.00039888,8]
[394784383,1763944250458,-576.19,0.00039888,8]
[394784384,1763944250467,-1472.89,0.00039888,8]
[394784385,1763944250481,-500.0,0.00039888,8]
[394784386,1763944250492,-500.0,0.00039888,8]
[394784387,1763944250502,-500.0,0.00039888,8]
[394784388,1763944250511,-500.0,0.00039888,8]
[394784389,1763944250523,-403.79704444,0.00039888,8]
[394784390,1763944250532,-500.0,0.00039888,8]
[394784391,1763944250542,-500.0,0.00039888,8]
[394784392,1763944250553,-368.04493714,0.00039888,8]
[394784393,1763944250563,-1839.34,0.00039888,8]
[394784394,1763944250573,-500.0,0.00039888,8]
[394784395,1763944250583,-500.0,0.00039888,8]
[394784396,1763944250593,-500.0,0.00039888,8]
[394784397,1763944250603,-500.0,0.00039888,8]
[394784398,1763944250612,-500.0,0.00039888,8]
[394784399,1763944250622,-500.0,0.00039888,8]
[394784400,1763944250632,-150.0,0.00039902,30]
[394784401,1763944250642,-942.39088881,0.00039902,30]
[394784402,1763944250652,-186.63512297,0.00039902,30]
[394784403,1763944250662,-150.0,0.00039902,30]
[394784404,1763944250671,-1133.84128557,0.00039902,30]
[394784405,1763944250681,-150.0,0.00039902,30]
[394784406,1763944250691,-2827.30720678,0.00039902,30]
[394784407,1763944250700,-150.0,0.00039902,30]
[394784408,1763944250709,-1104.41721277,0.00039902,30]
[394784409,1763944250721,-150.0,0.00039924,120]
[394784410,1763944250730,-150.0,0.00039928,120]
[394784411,1763944250741,-369.71272993,0.00039939,2]
[394784412,1763944250750,-1100.0,0.0003996,2]
[394784413,1763944250759,-1100.0,0.0003996,3]
[394784414,1763944250769,-1100.0,0.0003996,2]
[394784415,1763944250778,-1200.0,0.0003996,2]
[394784416,1763944250788,-1000.0,0.00039964,7]
[394784417,1763944250797,-500.0,0.00039995,8]
[394784418,1763944250807,-500.0,0.00039995,8]
[394784419,1763944250816,-500.0,0.00039995,8]
[394784420,1763944250826,-500.0,0.00039995,8]
[394784421,1763944250836,-151.0,0.00039999,120]
[394784422,1763944250845,-153.946127,0.00039999,120]
[394784423,1763944250855,-151.0,0.00039999,30]
[394784424,1763944250865,-500.0,0.00039999,8]
[394784425,1763944250874,-380.52885378,0.00039999,8]
[394784426,1763944250883,-215.0738,0.00039999,30]
[394784427,1763944250892,-533.88981491,0.00039999,30]
[394784428,1763944250902,-500.0,0.00039999,30]
[394784429,1763944250913,-250.0,0.00039999,30]
[394784430,1763944250923,-500.0,0.00039999,30]
[394784431,1763944250935,-1500.0,0.00039999,30]
[394784432,1763944250945,-500.0,0.00039999,30]
[394784433,1763944250955,-500.0,0.0004,14]
[394784434,1763944250964,-453.0,0.0004,20]
[394784435,1763944250973,-529.59,0.0004,7]
[394784436,1763944250982,-2000.0,0.0004,2]
[394784437,1763944250993,-151.0,0.0004,120]
[394784438,1763944251002,-151.0,0.0004,120]
[394784439,1763944251013,-154.339724,0.0004,120]
[394784440,1763944251022,-151.0,0.0004,120]
[394784441,1763944251032,-151.0,0.0004,120]
[394784442,1763944251041,-151.0,0.0004,90]
[394784443,1763944251051,-151.0,0.0004,90]
[394784444,1763944251060,-151.0,0.0004,90]
[394784445,1763944251070,-151.0,0.0004,120]
[394784446,1763944251079,-426.78462315,0.0004,30]
[394784447,1763944251088,-151.0,0.0004,120]
[394784448,1763944251098,-151.0,0.0004,120]
[394784449,1763944251107,-151.0,0.0004,120]
[394784450,1763944251116,-151.0,0.0004,120]
[394784451,1763944251126,-154.827351,0.0004,120]
[394784452,1763944251135,-151.0,0.0004,120]
[394784453,1763944251145,-151.0,0.0004,120]
[394784454,1763944251154,-151.0,0.0004,120]
[394784455,1763944251164,-217.55024,0.0004,120]
[394784456,1763944251173,-294.79606,0.0004,120]
[394784457,1763944251182,-153.897816,0.0004,120]
[394784458,1763944251192,-151.0,0.0004,120]
[394784459,1763944251202,-395.3994743,0.0004,30]
[394784460,1763944251211,-165.666462,0.0004,120]
[394784461,1763944251221,-268.493433,0.0004,28]
[394784462,1763944251230,-153.823858,0.0004,120]
[394784463,1763944251241,-151.0,0.0004,120]
[394784464,1763944251251,-151.0,0.0004,120]
[394784465,1763944251260,-151.0,0.0004,120]
[394784466,1763944251269,-436.073383,0.0004,120]
[394784467,1763944251279,-436.073383,0.0004,120]
[394784468,1763944251288,-436.073383,0.0004,120]
[394784469,1763944251297,-436.073383,0.0004,120]
[394784470,1763944251306,-17570.0,0.0004,2]
[394784471,1763944251315,-151.0,0.0004,120]
[394784472,1763944251325,-151.0,0.0004,120]
[394784473,1763944251336,-634.404637,0.0004,120]
[394784474,1763944251345,-634.404637,0.0004,120]
[394784475,1763944251355,-634.404637,0.0004,120]
[394784476,1763944251364,-151.0,0.0004,30]
[394784477,1763944251374,-634.404637,0.0004,120]
[394784478,1763944251383,-151.0,0.0004,120]
[394784479,1763944251393,-151.0,0.0004,120]
[394784480,1763944251403,-151.0,0.0004,120]
[394784481,1763944251412,-198.451936,0.0004,120]
[394784482,1763944251422,-162.247465,0.0004,120]
[394784483,1763944251431,-151.0,0.0004,120]
[394784484,1763944251441,-151.0,0.0004,120]
[394784485,1763944251451,-232.627023,0.0004,120]
[394784486,1763944251460,-151.0,0.0004,120]
[394784487,1763944251471,-232.627023,0.0004,120]
[394784488,1763944251483,-232.627023,0.0004,120]
[394784489,1763944251493,-232.627023,0.0004,120]
[394784490,1763944251502,-151.0,0.0004,15]
[394784491,1763944251512,-151.0,0.0004,15]
[394784492,1763944251521,-168.578184,0.0004,15]
[394784493,1763944251531,-736.385214,0.0004,120]
[394784494,1763944251540,-151.0,0.0004,120]
[394784495,1763944251551,-736.385214,0.0004,120]
[394784496,1763944251560,-151.0,0.0004,120]
[394784497,1763944251569,-736.385214,0.0004,120]
[394784498,1763944251578,-151.0,0.0004,120]
[394784499,1763944251587,-200.765514,0.0004,120]
[394784500,1763944251596,-736.385214,0.0004,120]
[394784501,1763944251605,-151.0,0.0004,120]
[394784502,1763944251614,-151.0,0.0004,120]
[394784503,1763944251624,-516.012086,0.0004,120]
[394784504,1763944251648,-151.0,0.0004,120]
[394784505,1763944251657,-516.012086,0.0004,120]
[394784506,1763944251666,-179.668458,0.0004,120]
[394784507,1763944251676,-516.012086,0.0004,120]
[394784508,1763944251684,-516.012086,0.0004,120]
[394784509,1763944251694,-151.0,0.0004,120]
[394784510,1763944251703,-1008.17409429,0.0004,30]
[394784511,1763944251712,-873.172326,0.0004,120]
[394784512,1763944251722,-873.172326,0.0004,120]
[394784513,1763944251731,-873.172326,0.0004,120]
[394784514,1763944251740,-873.172326,0.0004,120]
[394784515,1763944251750,-256.34418,0.0004,120]
[394784516,1763944251759,-151.0,0.0004,120]
[394784517,1763944251768,-410.689911,0.0004,120]
[394784518,1763944251778,-737.456002,0.0004,120]
[394784519,1763944251787,-410.689911,0.0004,120]
[394784520,1763944251797,-737.456002,0.0004,120]
[394784521,1763944251807,-373.936037,0.0004,120]
[394784522,1763944251816,-410.689911,0.0004,120]
[394784523,1763944251826,-737.456002,0.0004,120]
[394784524,1763944251836,-373.936037,0.0004,120]
[394784525,1763944251846,-410.689917,0.0004,120]
[394784526,1763944251855,-500.0,0.0004,8]
[394784527,1763944251864,-737.455998,0.0004,120]
[394784528,1763944251874,-373.936037,0.0004,120]
[394784529,1763944251883,-397.244348,0.0004,120]
[394784530,1763944251893,-373.936028,0.0004,120]
[394784531,1763944251903,-397.244348,0.0004,120]
[394784532,1763944251913,-397.244348,0.0004,120]
[394784533,1763944251922,-397.244341,0.0004,120]
[394784534,1763944251932,-190.830468,0.0004,120]
[394784535,1763944251941,-244.785915,0.0004,120]
[394784536,1763944251950,-190.830468,0.0004,120]
[394784537,1763944251959,-244.785915,0.0004,120]
[394784538,1763944251968,-190.830468,0.0004,120]
[394784539,1763944251977,-500.0,0.00040009,8]
[394784540,1763944251987,-500.0,0.00040009,8]
[394784541,1763944251996,-500.0,0.00040009,8]
[394784542,1763944252005,-500.0,0.00040009,8]
[394784543,1763944252014,-500.0,0.00040009,8]
[394784544,1763944252024,-345.365531,0.00040009,8]
[394784545,1763944252034,-500.0,0.00040009,8]
[394784546,1763944252043,-500.0,0.00040009,8]
[394784547,1763944252053,-500.0,0.00040009,8]
[394784548,1763944252062,-500.0,0.00040009,8]
[394784549,1763944252072,-500.0,0.00040009,8]
[394784550,1763944252082,-500.0,0.00040009,8]
[394784551,1763944252091,-151.0,0.00040009,120]
[394784552,1763944252100,-151.0,0.00040009,120]
[394784553,1763944252110,-151.0,0.00040009,120]
[394784554,1763944252119,-500.0,0.00040009,8]
[394784555,1763944252128,-500.0,0.00040009,8]
[394784556,1763944252137,-500.0,0.00040009,8]
[394784557,1763944252147,-500.0,0.00040009,2]
[394784558,1763944252156,-500.0,0.00040009,8]
[394784559,1763944252165,-500.0,0.00040009,8]
[394784560,1763944252174,-500.0,0.00040009,8]
[394784561,1763944252184,-500.0,0.00040009,8]
[394784562,1763944252194,-500.0,0.00040009,8]
[394784563,1763944252204,-500.0,0.00040009,8]
[394784564,1763944252252,-500.0,0.00040009,8]
[394784565,1763944252262,-500.0,0.00040009,8]
[394784566,1763944252271,-500.0,0.00040009,8]
[394784567,1763944252280,-500.0,0.00040009,8]
[394784568,1763944252289,-500.0,0.00040009,8]
[394784569,1763944252297,-487.99791965,0.00040009,8]
[394784570,1763944252306,-481.62634153,0.00040009,8]
[394784571,1763944252315,-500.0,0.00040009,8]
[394784572,1763944252325,-178.009525,0.00040009,120]
[394784573,1763944252334,-500.0,0.00040009,8]
[394784574,1763944252343,-151.0,0.00040009,120]
[394784575,1763944252351,-290.456037,0.00040009,120]
[394784576,1763944252360,-290.456037,0.00040009,120]
[394784577,1763944252369,-290.456037,0.00040009,120]
[394784578,1763944252379,-290.456029,0.00040009,120]
[394784579,1763944252388,-227.514157,0.00040009,30]
[394784580,1763944252398,-227.514157,0.00040009,30]
[394784581,1763944252408,-169.481391,0.00040009,120]
[394784582,1763944252417,-227.514157,0.00040009,30]
[394784583,1763944252426,-169.481391,0.00040009,120]
[394784584,1763944252435,-227.514165,0.00040009,30]
[394784585,1763944252444,-169.481391,0.00040009,120]
[394784586,1763944252454,-169.481392,0.00040009,120]
[394784587,1763944252463,-500.0,0.00040009,8]
[394784588,1763944252475,-1000.0,0.00040013,7]
[394784589,1763944252484,-151.0,0.0004002,120]
[394784590,1763944252494,-151.0,0.0004002,120]
[394784591,1763944252504,-151.0,0.0004002,120]
[394784592,1763944252514,-151.0,0.0004002,120]
[394784593,1763944252524,-151.0,0.0004002,120]
[394784594,1763944252533,-151.0,0.0004002,120]
[394784595,1763944252542,-151.0,0.0004002,120]
[394784596,1763944252554,-151.0,0.0004002,120]
[394784597,1763944252563,-500.0,0.00040021,5]
[394784598,1763944252571,-470.24249009,0.00040021,5]
[394784599,1763944252581,-500.0,0.00040021,5]
[394784600,1763944252590,-7323.47241825,0.00040032,15]
[394784601,1763944252599,-151.0,0.00040033,120]
[394784602,1763944252608,-166.199414,0.00040033,120]
[394784603,1763944252617,-151.0,0.00040033,120]
[394784604,1763944252626,-625.0,0.00040055,20]
[394784605,1763944252635,-701.46,0.00040055,2]
[394784606,1763944252644,-701.46,0.00040055,2]
[394784607,1763944252653,-479.01,0.00040055,2]
[394784608,1763944252664,-698.43,0.00040055,2]
[394784609,1763944252673,-479.01,0.00040055,2]
[394784610,1763944252682,-701.46,0.00040055,2]
[394784611,1763944252692,-479.01,0.00040055,2]
[394784612,1763944252701,-782.83,0.00040055,2]
[394784613,1763944252712,-1100.0,0.0004006,2]
[394784614,1763944252722,-1100.0,0.0004006,3]
[394784615,1763944252731,-1100.0,0.0004006,2]
[394784616,1763944252742,-1200.0,0.0004006,2]
[394784617,1763944252751,-150.0,0.00040074,120]
[394784618,1763944252761,-5215.41278733,0.00040086,15]
[394784619,1763944252770,-1010.0,0.000401,7]
[394784620,1763944252780,-500.0,0.00040129,8]
[394784621,1763944252790,-500.0,0.00040129,8]
[394784622,1763944252799,-587.71854044,0.00040129,8]
[394784623,1763944252809,-1318.01,0.0004013,30]
[394784624,1763944252818,-240.05386995,0.0004013,8]
[394784625,1763944252828,-1100.0,0.0004016,2]
[394784626,1763944252837,-1100.0,0.0004016,3]
[394784627,1763944252846,-1100.0,0.0004016,2]
[394784628,1763944252856,-1100.0,0.0004016,2]
[394784629,1763944252866,-1200.0,0.0004016,2]
[394784630,1763944252879,-500.0,0.00040161,8]
[394784631,1763944252888,-500.0,0.00040161,8]
[394784632,1763944252898,-500.0,0.00040161,8]
[394784633,1763944252907,-500.0,0.00040161,8]
[394784634,1763944252917,-500.0,0.00040161,8]
[394784635,1763944252927,-500.0,0.00040161,8]
[394784636,1763944252937,-500.0,0.00040161,8]
[394784637,1763944252946,-500.0,0.00040161,8]
[394784638,1763944252955,-500.0,0.00040161,8]
[394784639,1763944252966,-500.0,0.00040161,8]
[394784640,1763944252977,-500.0,0.00040162,8]
[394784641,1763944252987,-500.0,0.00040162,8]
[394784642,1763944252997,-500.0,0.00040162,8]
[394784643,1763944253006,-321.30388114,0.00040162,8]
[394784644,1763944253016,-500.0,0.00040162,8]
[394784645,1763944253026,-500.0,0.00040162,8]
[394784646,1763944253036,-594.33352358,0.00040162,8]
[394784647,1763944253045,-500.0,0.00040162,8]
[394784648,1763944253055,-500.0,0.00040162,8]
[394784649,1763944253067,-576.19,0.00040162,8]
[394784650,1763944253081,-1472.89,0.00040162,8]
[394784651,1763944253092,-500.0,0.00040162,8]
[394784652,1763944253101,-500.0,0.00040162,8]
[394784653,1763944253111,-500.0,0.00040162,8]
[394784654,1763944253120,-500.0,0.00040162,8]
[394784655,1763944253130,-500.0,0.00040162,8]
[394784656,1763944253140,-500.0,0.00040162,8]
[394784657,1763944253151,-1839.34,0.00040162,8]
[394784658,1763944253162,-500.0,0.00040162,8]
[394784659,1763944253172,-500.0,0.00040162,8]
[394784660,1763944253182,-500.0,0.00040162,8]
[394784661,1763944253192,-500.0,0.00040162,8]
[394784662,1763944253202,-500.0,0.00040162,8]
[394784663,1763944253212,-500.0,0.00040162,8]
[394784664,1763944253221,-150.0,0.00040162,120]
[394784665,1763944253230,-900.0,0.00040178,7]
[394784666,1763944253240,-600.0,0.00040178,7]
[394784667,1763944253250,-150.48,0.00040192,2]
[394784668,1763944253260,-150.0,0.00040192,2]
[394784669,1763944253270,-150.0,0.00040192,2]
[394784670,1763944253283,-417.4,0.00040192,2]
[394784671,1763944253293,-169.71,0.00040192,2]
[394784672,1763944253307,-150.0,0.00040192,2]
[394784673,1763944253317,-177.6,0.00040192,2]
[394784674,1763944253326,-551.04,0.00040192,2]
[394784675,1763944253336,-150.0,0.00040192,2]
[394784676,1763944253345,-150.0,0.00040192,2]
[394784677,1763944253355,-1211.3,0.00040192,2]
[394784678,1763944253365,-551.04,0.00040192,2]
[394784679,1763944253374,-169.71,0.00040192,2]
[394784680,1763944253383,-150.0,0.00040192,2]
[394784681,1763944253392,-1211.3,0.00040192,2]
[394784682,1763944253402,-417.4,0.00040192,2]
[394784683,1763944253411,-150.0,0.00040192,2]
[394784684,1763944253421,-177.6,0.00040192,2]
[394784685,1763944253431,-150.0,0.00040192,2]
[394784686,1763944253440,-177.6,0.00040192,2]
[394784687,1763944253450,-1211.3,0.00040192,2]
[394784688,1763944253460,-150.0,0.00040192,2]
[394784689,1763944253470,-169.71,0.00040192,2]
[394784690,1763944253484,-220.57,0.00040192,2]
[394784691,1763944253494,-150.0,0.00040192,2]
[394784692,1763944253504,-551.04,0.00040192,2]
[394784693,1763944253515,-417.4,0.00040192,2]
[394784694,1763944253524,-169.71,0.00040192,2]
[394784695,1763944253533,-551.04,0.00040192,2]
[394784696,1763944253543,-1211.3,0.00040192,2]
[394784697,1763944253554,-417.4,0.00040192,2]
[394784698,1763944253563,-177.6,0.00040192,2]
[394784699,1763944253573,-150.0,0.00040192,2]
[394784700,1763944253583,-150.0,0.00040192,2]
[394784701,1763944253593,-551.04,0.00040192,2]
[394784702,1763944253603,-150.0,0.00040192,2]
[394784703,1763944253612,-382.15,0.00040192,2]
[394784704,1763944253621,-177.6,0.00040192,2]
[394784705,1763944253631,-302.56,0.00040192,2]
[394784706,1763944253640,-960.72,0.00040192,2]
[394784707,1763944253649,-150.0,0.00040192,2]
[394784708,1763944253659,-150.0,0.00040192,2]
[394784709,1763944253669,-463.09,0.00040192,2]
[394784710,1763944253683,-177.6,0.00040192,2]
[394784711,1763944253692,-710.9,0.00040192,2]
[394784712,1763944253702,-300.0,0.00040192,2]
[394784713,1763944253711,-2422.6,0.00040192,2]
[394784714,1763944253721,-150.0,0.00040192,2]
[394784715,1763944253730,-1102.08,0.00040192,2]
[394784716,1763944253741,-150.0,0.00040192,2]
[394784717,1763944253750,-300.0,0.00040192,2]
[394784718,1763944253760,-177.6,0.00040192,2]
[394784719,1763944253769,-177.6,0.00040192,2]
[394784720,1763944253778,-177.6,0.00040192,2]
[394784721,1763944253788,-150.0,0.00040192,2]
[394784722,1763944253797,-150.0,0.00040192,2]
[394784723,1763944253806,-177.6,0.00040192,2]
[394784724,1763944253816,-177.6,0.00040192,2]
[394784725,1763944253825,-150.0,0.00040192,2]
[394784726,1763944253835,-177.6,0.00040192,2]
[394784727,1763944253845,-177.06,0.00040192,2]
[394784728,1763944253854,-150.0,0.00040192,2]
[394784729,1763944253865,-150.0,0.00040192,2]
[394784730,1763944253874,-150.0,0.00040192,2]
[394784731,1763944253886,-150.0,0.00040192,2]
[394784732,1763944253895,-163.15622689,0.00040201,15]
[394784733,1763944253905,-1000.0,0.00040212,7]
[394784734,1763944253916,-299.0,0.00040229,2]
[394784735,1763944253924,-369.71272993,0.00040259,2]
[394784736,1763944253934,-1100.0,0.0004026,2]
[394784737,1763944253943,-1100.0,0.0004026,3]
[394784738,1763944253953,-1100.0,0.0004026,2]
[394784739,1763944253963,-1100.0,0.0004026,2]
[394784740,1763944253973,-1100.0,0.0004026,2]
[394784741,1763944253982,-1200.0,0.0004026,2]
[394784742,1763944253992,-200.0,0.00040266,2]
[394784743,1763944254002,-500.0,0.00040269,8]
[394784744,1763944254013,-500.0,0.00040269,8]
[394784745,1763944254023,-500.0,0.00040269,8]
[394784746,1763944254032,-500.0,0.00040269,8]
[394784747,1763944254042,-500.0,0.00040272,8]
[394784748,1763944254051,-500.0,0.00040273,8]
[394784749,1763944254061,-500.0,0.00040273,8]
[394784750,1763944254071,-500.0,0.00040283,8]
[394784751,1763944254081,-500.0,0.00040283,8]
[394784752,1763944254091,-330.5196559,0.00040283,8]
[394784753,1763944254100,-500.0,0.00040283,8]
[394784754,1763944254110,-500.0,0.00040283,8]
[394784755,1763944254119,-500.0,0.00040283,8]
[394784756,1763944254129,-500.0,0.00040283,8]
[394784757,1763944254138,-500.0,0.00040283,8]
[394784758,1763944254148,-194.67486276,0.00040283,8]
[394784759,1763944254157,-500.0,0.00040283,8]
[394784760,1763944254167,-500.0,0.00040283,8]
[394784761,1763944254177,-500.0,0.00040283,8]
[394784762,1763944254187,-272.77522328,0.00040283,8]
[394784763,1763944254197,-500.0,0.00040283,8]
[394784764,1763944254207,-500.0,0.00040283,2]
[394784765,1763944254217,-581.68354013,0.00040283,8]
[394784766,1763944254227,-500.0,0.00040283,8]
[394784767,1763944254237,-337.47184642,0.00040283,8]
[394784768,1763944254247,-500.0,0.00040283,8]
[394784769,1763944254257,-500.0,0.00040283,8]
[394784770,1763944254267,-500.0,0.00040283,8]
[394784771,1763944254277,-558.11596788,0.00040283,8]
[394784772,1763944254288,-500.0,0.00040283,8]
[394784773,1763944254298,-500.0,0.00040283,8]
[394784774,1763944254308,-500.0,0.00040283,8]
[394784775,1763944254318,-500.0,0.00040283,8]
[394784776,1763944254328,-481.95148613,0.00040283,8]
[394784777,1763944254338,-312.44792366,0.00040283,8]
[394784778,1763944254348,-150.0,0.00040317,7]
[394784779,1763944254357,-7323.47241825,0.00040321,15]
[394784780,1763944254367,-150.0,0.00040326,7]
[394784781,1763944254377,-5215.41278733,0.00040357,15]
[394784782,1763944254387,-1100.0,0.0004036,2]
[394784783,1763944254396,-1100.0,0.0004036,3]
[394784784,1763944254406,-1100.0,0.0004036,4]
[394784785,1763944254415,-1000.0,0.0004036,7]
[394784786,1763944254425,-150.0,0.00040367,7]
[394784787,1763944254435,-150.0,0.00040369,120]
[394784788,1763944254444,-1000.0,0.00040372,7]
[394784789,1763944254454,-1000.0,0.00040376,7]
[394784790,1763944254463,-150.0,0.00040382,7]
[394784791,1763944254481,-7005.0,0.00040391,5]
[394784792,1763944254492,-500.0,0.00040403,8]
[394784793,1763944254502,-224.58367162,0.00040403,8]
[394784794,1763944254511,-1318.01,0.00040404,30]
[394784795,1763944254523,-1601.0,0.00040412,2]
[394784796,1763944254532,-822.0,0.00040412,2]
[394784797,1763944254542,-659.0,0.00040412,2]
[394784798,1763944254553,-1256.0,0.00040412,2]
[394784799,1763944254563,-908.0,0.00040412,2]
[394784800,1763944254572,-575.0,0.00040412,2]
[394784801,1763944254582,-3435.0,0.00040412,2]
[394784802,1763944254591,-617.899,0.00040412,2]
[394784803,1763944254601,-1319.0,0.00040412,2]
[394784804,1763944254611,-500.0,0.00040435,8]
[394784805,1763944254620,-277.58374067,0.00040435,8]
[394784806,1763944254630,-500.0,0.00040435,8]
[394784807,1763944254640,-500.0,0.00040435,8]
[394784808,1763944254650,-291.70144611,0.00040435,8]
[394784809,1763944254660,-500.0,0.00040435,8]
[394784810,1763944254670,-500.0,0.00040435,8]
[394784811,1763944254680,-500.0,0.00040435,8]
[394784812,1763944254690,-500.0,0.00040435,8]
[394784813,1763944254699,-500.0,0.00040436,8]
[394784814,1763944254709,-500.0,0.00040436,8]
[394784815,1763944254718,-500.0,0.00040436,8]
[394784816,1763944254728,-500.0,0.00040436,8]
[394784817,1763944254737,-500.0,0.00040436,8]
[394784818,1763944254747,-500.0,0.00040436,8]
[394784819,1763944254757,-576.19,0.00040436,8]
[394784820,1763944254767,-1472.89,0.00040436,8]
[394784821,1763944254777,-500.0,0.00040436,8]
[394784822,1763944254786,-500.0,0.00040436,8]
[394784823,1763944254796,-500.0,0.00040436,8]
[394784824,1763944254806,-500.0,0.00040436,8]
[394784825,1763944254816,-500.0,0.00040436,8]
[394784826,1763944254826,-500.0,0.00040436,8]
[394784827,1763944254835,-1839.34,0.00040436,8]
[394784828,1763944254846,-500.0,0.00040436,8]
[394784829,1763944254856,-500.0,0.00040436,8]
[394784830,1763944254866,-500.0,0.00040436,8]
[394784831,1763944254876,-246.43452734,0.00040436,8]
[394784832,1763944254886,-500.0,0.00040436,8]
[394784833,1763944254897,-500.0,0.00040436,8]
[394784834,1763944254906,-205.61296227,0.00040443,8]
[394784835,1763944254917,-625.0,0.00040455,20]
[394784836,1763944254927,-1100.0,0.0004046,2]
[394784837,1763944254938,-1100.0,0.0004046,3]
[394784838,1763944254948,-1100.0,0.0004046,2]
[394784839,1763944254958,-1200.0,0.0004046,2]
[394784840,1763944254967,-150.0,0.00040466,2]
[394784841,1763944254976,-150.0,0.00040466,2]
[394784842,1763944254987,-150.0,0.00040466,2]
[394784843,1763944254997,-150.0,0.00040466,2]
[394784844,1763944255007,-150.0,0.00040466,2]
[394784845,1763944255016,-1000.0,0.00040491,7]
[394784846,1763944255026,-1000.0,0.00040499,7]
[394784847,1763944255036,-150.0,0.00040531,120]
[394784848,1763944255046,-150.0,0.00040533,120]
[394784849,1763944255057,-500.0,0.00040543,8]
[394784850,1763944255067,-500.0,0.00040543,8]
[394784851,1763944255077,-500.0,0.00040543,8]
[394784852,1763944255087,-500.0,0.00040543,8]
[394784853,1763944255097,-500.0,0.00040547,8]
[394784854,1763944255107,-515.52099885,0.00040547,8]
[394784855,1763944255117,-163.15622689,0.00040551,15]
[394784856,1763944255127,-500.0,0.00040557,8]
[394784857,1763944255138,-500.0,0.00040557,8]
[394784858,1763944255148,-500.0,0.00040557,8]
[394784859,1763944255158,-500.0,0.00040557,8]
[394784860,1763944255168,-500.0,0.00040557,8]
[394784861,1763944255178,-500.0,0.00040557,8]
[394784862,1763944255188,-500.0,0.00040557,8]
[394784863,1763944255198,-154.79742261,0.00040557,8]
[394784864,1763944255208,-500.0,0.00040557,8]
[394784865,1763944255218,-500.0,0.00040557,8]
[394784866,1763944255228,-500.0,0.00040557,8]
[394784867,1763944255238,-224.86,0.00040557,2]
[394784868,1763944255248,-500.0,0.00040557,8]
[394784869,1763944255259,-500.0,0.00040557,8]
[394784870,1763944255269,-500.0,0.00040557,8]
[394784871,1763944255279,-500.0,0.00040557,8]
[394784872,1763944255290,-500.0,0.00040557,8]
[394784873,1763944255300,-500.0,0.00040557,8]
[394784874,1763944255310,-299.82889434,0.00040557,8]
[394784875,1763944255321,-500.0,0.00040557,8]